[Event "MČR juniorů a juniorek v rapid šachu 2024"]
[Site "Hotel Fit Fun, Harrachov, Czech Republic"]
[Date "2024.09.22"]
[Round "8.18"]
[White "Koranda Kosma"]
[Black "Mrazek Adam"]
[Result "0-1"]
[TimeControl "20+5"]
[WhiteFideId "23772948"]
[BlackFideId "23725010"]
[WhiteElo "1884"]
[BlackElo "1830"]

1. e4 {[%clk 00:20:08]} {[%emt 00:00:01]} c5 {[%clk 00:20:07]} {[%emt
00:00:04]} 2. Nf3 {[%clk 00:20:12]} {[%emt 00:00:01]} Nc6 {[%clk 00:20:11]} 3.
Bb5 {[%clk 00:20:15]} {[%emt 00:00:02]} e6 {[%clk 00:20:12]} {[%emt 00:00:03]}
4. Bxc6 {[%clk 00:20:18]} {[%emt 00:00:02]} bxc6 {[%clk 00:20:17]} 5. e5 {[%clk
00:19:49]} {[%emt 00:00:34]} Be7 {[%clk 00:16:44]} {[%emt 00:03:38]} 6. d3
{[%clk 00:19:13]} {[%emt 00:00:40]} f6 {[%clk 00:15:08]} {[%emt 00:01:41]} 7.
O-O {[%clk 00:18:15]} {[%emt 00:01:03]} fxe5 {[%clk 00:15:13]} {[%emt
00:00:01]} 8. Nxe5 {[%clk 00:18:06]} {[%emt 00:00:13]} Nf6 {[%clk 00:15:15]}
{[%emt 00:00:03]} 9. Bg5 {[%clk 00:17:28]} {[%emt 00:00:42]} O-O {[%clk
00:15:14]} {[%emt 00:00:07]} 10. Nc3 {[%clk 00:16:18]} {[%emt 00:01:15]} Qc7
{[%clk 00:11:10]} {[%emt 00:04:09]} 11. Qe2 {[%clk 00:13:46]} {[%emt 00:02:37]}
d6 {[%clk 00:10:35]} {[%emt 00:00:40]} 12. Nf3 {[%clk 00:13:07]} {[%emt
00:00:43]} e5 {[%clk 00:10:26]} {[%emt 00:00:15]} 13. Rae1 {[%clk 00:12:10]}
{[%emt 00:01:02]} Rb8 {[%clk 00:09:06]} {[%emt 00:01:25]} 14. b3 {[%clk
00:11:16]} {[%emt 00:00:59]} Bg4 {[%clk 00:08:36]} {[%emt 00:00:35]} 15. Kh1
{[%clk 00:08:42]} {[%emt 00:02:39]} Qa5 {[%clk 00:06:50]} {[%emt 00:01:52]} 16.
Bd2 {[%clk 00:07:42]} {[%emt 00:01:04]} Qc7 {[%clk 00:05:48]} {[%emt 00:01:07]}
17. a4 {[%clk 00:07:06]} {[%emt 00:00:40]} Nh5 {[%clk 00:05:08]} {[%emt
00:00:45]} 18. Rg1 {[%clk 00:06:24]} {[%emt 00:00:47]} Nf4 {[%clk 00:04:50]}
{[%emt 00:00:23]} 19. Bxf4 {[%clk 00:05:10]} {[%emt 00:01:19]} Rxf4 {[%clk
00:04:53]} {[%emt 00:00:01]} 20. Ne4 {[%clk 00:04:28]} {[%emt 00:00:47]} Rbf8
{[%clk 00:04:08]} {[%emt 00:00:51]} 21. Ned2 {[%clk 00:04:04]} {[%emt
00:00:29]} Qd7 {[%clk 00:02:19]} {[%emt 00:01:55]} 22. Qe3 {[%clk 00:03:34]}
{[%emt 00:00:35]} Qe6 {[%clk 00:01:22]} {[%emt 00:01:02]} 23. d4 {[%clk
00:02:18]} {[%emt 00:01:21]} cxd4 {[%clk 00:00:55]} {[%emt 00:00:33]} 24. Qd3
{[%clk 00:01:03]} {[%emt 00:01:14]} Qh6 {[%clk 00:00:40]} {[%emt 00:00:25]} 25.
Qc4+ {[%clk 00:00:20]} {[%emt 00:00:49]} d5 {[%clk 00:00:35]} {[%emt 00:00:10]}
26. Qf1 {[%clk 00:00:17]} {[%emt 00:00:07]} e4 {[%clk 00:00:23]} {[%emt
00:00:17]} 27. Ne5 {[%clk 00:00:12]} {[%emt 00:00:09]} Bd6 {[%clk 00:00:09]}
{[%emt 00:00:20]} 28. Nxg4 {[%clk 00:00:14]} {[%emt 00:00:03]} Rxg4 {[%clk
00:00:13]} 29. h3 {[%clk 00:00:10]} {[%emt 00:00:09]} Rgf4 {[%clk 00:00:09]}
{[%emt 00:00:10]} 30. f3 {[%clk 00:00:09]} {[%emt 00:00:06]} e3 {[%clk
00:00:13]} {[%emt 00:00:01]} 31. Nb1 {[%clk 00:00:11]} {[%emt 00:00:02]} R4f5
{[%emt 00:00:07]} 32. Na3 {[%clk 00:00:14]} {[%emt 00:00:02]} Qf4 {[%clk
00:00:15]} 33. g3 {[%clk 00:00:15]} {[%emt 00:00:04]} Qxf3+ {[%clk 00:00:19]}
34. Qxf3 {[%clk 00:00:19]} {[%emt 00:00:01]} Rxf3 {[%clk 00:00:23]} {[%emt
00:00:01]} 35. Nb1 {[%clk 00:00:13]} {[%emt 00:00:11]} Bb4 {[%clk 00:00:24]}
{[%emt 00:00:05]} 36. Rd1 {[%clk 00:00:14]} {[%emt 00:00:04]} c5 {[%clk
00:00:23]} {[%emt 00:00:05]} 37. c3 {[%clk 00:00:15]} {[%emt 00:00:04]} dxc3
{[%clk 00:00:16]} {[%emt 00:00:12]} 38. Rxd5 {[%clk 00:00:09]} {[%emt
00:00:11]} c2 {[%clk 00:00:20]} {[%emt 00:00:02]} 39. Rd3 {[%clk 00:00:06]}
{[%emt 00:00:07]} cxb1=Q {[%clk 00:00:16]} {[%emt 00:00:09]} 40. Rxb1 {[%clk
00:00:10]} {[%emt 00:00:02]} e2 {[%clk 00:00:12]} {[%emt 00:00:10]} 41. Rxf3
{[%clk 00:00:08]} {[%emt 00:00:07]} Rxf3 {[%clk 00:00:16]} {[%emt 00:00:01]} 42.
Kg2 {[%clk 00:00:11]} Re3 {[%clk 00:00:16]} {[%emt 00:00:05]} 43. Kf2 {[%clk
00:00:13]} {[%emt 00:00:03]} e1=Q+ {[%clk 00:00:18]} {[%emt 00:00:03]} 44. Rxe1
{[%emt 00:00:04]} Rxe1 {[%clk 00:00:21]} {[%emt 00:00:01]} 0-1



[ePGN "0.1;DGT LiveChess/2.2.6"]

[Event "MČR juniorů a juniorek v rapid šachu 2024"]
[Site "Hotel Fit Fun, Harrachov, Czech Republic"]
[Date "2024.09.22"]
[Round "8.19"]
[White "Siles Jan"]
[Black "Hrazdira Matyas Josef"]
[Result "1-0"]
[TimeControl "20+5"]
[WhiteFideId "23715405"]
[BlackFideId "23732954"]
[WhiteElo "1873"]
[BlackElo "1786"]

1. d4 {[%clk 00:20:09]} Nf6 {[%clk 00:20:08]} {[%emt 00:00:02]} 2. Nf3 {[%clk
00:19:55]} {[%emt 00:00:19]} e6 {[%clk 00:20:02]} {[%emt 00:00:11]} 3. e3
{[%clk 00:19:46]} {[%emt 00:00:14]} c5 {[%clk 00:19:43]} {[%emt 00:00:24]} 4.
c3 {[%clk 00:19:49]} {[%emt 00:00:03]} Be7 {[%clk 00:19:16]} {[%emt 00:00:31]}
5. Bd3 {[%clk 00:19:51]} {[%emt 00:00:03]} d5 {[%clk 00:18:55]} {[%emt
00:00:26]} 6. Nbd2 {[%clk 00:19:48]} {[%emt 00:00:08]} Nbd7 {[%clk 00:18:50]}
{[%emt 00:00:10]} 7. O-O {[%clk 00:19:50]} {[%emt 00:00:03]} Qc7 {[%clk
00:18:27]} {[%emt 00:00:29]} 8. Re1 {[%clk 00:19:35]} {[%emt 00:00:19]} O-O
{[%clk 00:18:16]} {[%emt 00:00:16]} 9. e4 {[%emt 00:00:50]} dxe4 {[%clk
00:18:09]} {[%emt 00:00:07]} 10. Nxe4 {[%clk 00:18:54]} {[%emt 00:00:06]} Nxe4
{[%clk 00:17:56]} {[%emt 00:00:18]} 11. Rxe4 {[%clk 00:16:21]} {[%emt
00:02:38]} Nf6 {[%clk 00:15:00]} {[%emt 00:03:02]} 12. Rh4 {[%clk 00:16:14]}
{[%emt 00:00:12]} g6 {[%clk 00:12:27]} {[%emt 00:02:38]} 13. Bf4 {[%clk
00:13:45]} {[%emt 00:02:33]} Qb6 {[%clk 00:10:38]} {[%emt 00:01:54]} 14. Qd2
{[%clk 00:08:18]} {[%emt 00:05:32]} Nd5 {[%clk 00:03:43]} {[%emt 00:07:00]} 15.
Bg5 {[%clk 00:07:07]} {[%emt 00:01:16]} f6 {[%clk 00:01:46]} {[%emt 00:02:03]}
16. Bh6 {[%clk 00:06:04]} {[%emt 00:01:08]} Rf7 {[%clk 00:00:57]} {[%emt
00:00:54]} 17. Re1 {[%clk 00:05:14]} {[%emt 00:00:54]} Bd7 {[%clk 00:00:20]}
{[%emt 00:00:44]} 18. Qc2 {[%clk 00:04:31]} {[%emt 00:00:47]} f5 {[%clk
00:00:24]} {[%emt 00:00:01]} 19. Rh3 {[%clk 00:04:35]} Bf6 {[%clk 00:00:27]}
{[%emt 00:00:02]} 20. Ne5 {[%clk 00:03:27]} {[%emt 00:01:14]} Bxe5 {[%clk
00:00:30]} {[%emt 00:00:02]} 21. dxe5 {[%clk 00:03:03]} {[%emt 00:00:29]} Rc8
{[%clk 00:00:27]} {[%emt 00:00:07]} 22. Bc4 {[%clk 00:02:56]} {[%emt 00:00:12]}
Bc6 {[%clk 00:00:27]} {[%emt 00:00:04]} 23. Bg5 {[%clk 00:02:18]} {[%emt
00:00:44]} Qa5 {[%clk 00:00:27]} {[%emt 00:00:05]} 24. Rh4 {[%clk 00:01:44]}
{[%emt 00:00:38]} b5 {[%clk 00:00:26]} {[%emt 00:00:06]} 25. Bxd5 Bxd5 {[%clk
00:00:30]} 26. b3 {[%clk 00:01:20]} {[%emt 00:00:21]} c4 {[%clk 00:00:34]} 27.
b4 {[%clk 00:01:24]} {[%emt 00:00:02]} Qb6 {[%clk 00:00:37]} 28. Re3 {[%clk
00:01:02]} {[%emt 00:00:28]} Rd7 {[%clk 00:00:31]} {[%emt 00:00:11]} 29. Qc1
{[%clk 00:00:54]} {[%emt 00:00:12]} Be4 {[%clk 00:00:29]} {[%emt 00:00:07]} 30.
Reh3 {[%clk 00:00:38]} {[%emt 00:00:21]} Qb7 {[%clk 00:00:32]} {[%emt
00:00:02]} 31. f3 {[%clk 00:00:33]} {[%emt 00:00:10]} Bd5 {[%clk 00:00:21]}
{[%emt 00:00:16]} 32. Bf6 {[%clk 00:00:32]} {[%emt 00:00:06]} Rf7 {[%clk
00:00:23]} {[%emt 00:00:03]} 33. Qh6 {[%clk 00:00:28]} {[%emt 00:00:10]} Rcc7
{[%clk 00:00:23]} {[%emt 00:00:04]} 34. Qxg6+ {[%clk 00:00:31]} Kf8 {[%clk
00:00:25]} {[%emt 00:00:04]} 35. Qg5 {[%clk 00:00:21]} {[%emt 00:00:15]} Bc6
{[%clk 00:00:14]} {[%emt 00:00:16]} 36. Rd4 {[%clk 00:00:21]} {[%emt 00:00:05]}
Rcd7 {[%clk 00:00:18]} {[%emt 00:00:01]} 37. Rhh4 {[%clk 00:00:20]} {[%emt
00:00:06]} Bd5 {[%clk 00:00:19]} {[%emt 00:00:04]} 38. Rh3 {[%clk 00:00:18]}
{[%emt 00:00:06]} Bc6 {[%clk 00:00:20]} {[%emt 00:00:04]} 39. Rg3 {[%clk
00:00:21]} {[%emt 00:00:02]} Ke8 {[%clk 00:00:23]} {[%emt 00:00:02]} 40. Qg8+
{[%clk 00:00:23]} {[%emt 00:00:04]} Rf8 {[%clk 00:00:26]} {[%emt 00:00:02]} 41.
Qxe6+ {[%clk 00:00:27]} Re7 {[%clk 00:00:22]} {[%emt 00:00:09]} 42. Bxe7 {[%clk
00:00:24]} {[%emt 00:00:09]} Qxe7 {[%clk 00:00:24]} {[%emt 00:00:02]} 43. Qxc6+
{[%clk 00:00:25]} {[%emt 00:00:04]} 1-0



[ePGN "0.1;DGT LiveChess/2.2.6"]

[Event "MČR juniorů a juniorek v rapid šachu 2024"]
[Site "Hotel Fit Fun, Harrachov, Czech Republic"]
[Date "2024.09.22"]
[Round "8.2"]
[White "Hak David"]
[Black "Mikolas Petr"]
[Result "1-0"]
[TimeControl "20+5"]
[WhiteFideId "377007"]
[BlackFideId "23713224"]
[WhiteElo "2103"]
[BlackElo "1892"]

1. d4 {[%clk 00:19:48]} {[%emt 00:00:21]} Nf6 {[%clk 00:20:09]} {[%emt
00:00:02]} 2. c4 {[%clk 00:19:50]} {[%emt 00:00:03]} e6 {[%clk 00:20:12]}
{[%emt 00:00:02]} 3. Nc3 {[%clk 00:19:51]} {[%emt 00:00:04]} Bb4 {[%clk
00:20:15]} {[%emt 00:00:02]} 4. e3 {[%clk 00:19:55]} O-O {[%clk 00:20:18]}
{[%emt 00:00:01]} 5. Nge2 {[%emt 00:00:51]} c5 6. a3 {[%clk 00:20:00]} Bxc3+
{[%clk 00:18:57]} {[%emt 00:00:45]} 7. Nxc3 {[%clk 00:20:03]} {[%emt 00:00:02]}
cxd4 {[%clk 00:18:56]} {[%emt 00:00:07]} 8. exd4 {[%clk 00:20:05]} {[%emt
00:00:02]} d5 {[%clk 00:18:59]} {[%emt 00:00:02]} 9. c5 {[%clk 00:19:37]}
{[%emt 00:00:33]} Nc6 {[%clk 00:15:48]} {[%emt 00:03:16]} 10. Be2 {[%clk
00:19:19]} {[%emt 00:00:23]} e5 {[%clk 00:15:36]} {[%emt 00:00:18]} 11. dxe5
{[%clk 00:19:09]} {[%emt 00:00:15]} Nxe5 {[%clk 00:15:39]} {[%emt 00:00:01]} 12.
Bf4 {[%clk 00:18:57]} {[%emt 00:00:16]} Re8 {[%clk 00:15:28]} {[%emt 00:00:17]}
13. O-O {[%clk 00:18:54]} {[%emt 00:00:08]} a6 {[%clk 00:12:27]} {[%emt
00:03:07]} 14. Re1 {[%clk 00:18:45]} {[%emt 00:00:13]} Nc6 {[%clk 00:11:27]}
{[%emt 00:01:06]} 15. Bf3 {[%clk 00:18:30]} {[%emt 00:00:19]} Rxe1+ {[%clk
00:11:30]} {[%emt 00:00:03]} 16. Qxe1 {[%clk 00:18:33]} {[%emt 00:00:02]} Be6
{[%clk 00:11:33]} {[%emt 00:00:02]} 17. Rd1 {[%clk 00:18:21]} {[%emt 00:00:17]}
Qa5 {[%clk 00:11:26]} {[%emt 00:00:13]} 18. Bd6 {[%clk 00:17:32]} {[%emt
00:00:53]} Re8 {[%clk 00:09:23]} {[%emt 00:02:09]} 19. Qd2 {[%clk 00:16:15]}
{[%emt 00:01:22]} h6 {[%emt 00:01:20]} 20. h3 {[%clk 00:16:07]} {[%emt
00:00:11]} Ne7 {[%clk 00:07:42]} {[%emt 00:00:33]} 21. Bxe7 {[%clk 00:15:42]}
{[%emt 00:00:30]} Rxe7 {[%clk 00:07:44]} {[%emt 00:00:04]} 22. Nxd5 {[%clk
00:15:39]} {[%emt 00:00:08]} Qxd2 {[%clk 00:07:45]} {[%emt 00:00:04]} 23. Nxe7+
{[%clk 00:15:41]} {[%emt 00:00:02]} Kf8 {[%clk 00:07:49]} {[%emt 00:00:02]} 24.
Rxd2 {[%clk 00:15:39]} {[%emt 00:00:07]} Kxe7 {[%clk 00:07:52]} {[%emt
00:00:01]} 25. Bxb7 {[%clk 00:15:41]} {[%emt 00:00:03]} 1-0



[ePGN "0.1;DGT LiveChess/2.2.6"]

[Event "MČR juniorů a juniorek v rapid šachu 2024"]
[Site "Hotel Fit Fun, Harrachov, Czech Republic"]
[Date "2024.09.22"]
[Round "8.20"]
[White "Nespora Tatana"]
[Black "Hosova Sandra"]
[Result "0-1"]
[TimeControl "20+5"]
[WhiteFideId "392286"]
[BlackFideId "397717"]
[WhiteElo "1697"]
[BlackElo "1847"]

1. e4 {[%clk 00:20:05]} {[%emt 00:00:06]} c5 {[%clk 00:20:08]} {[%emt
00:00:02]} 2. Nf3 {[%clk 00:20:06]} {[%emt 00:00:03]} Nc6 {[%clk 00:20:11]}
{[%emt 00:00:03]} 3. d4 {[%clk 00:20:08]} {[%emt 00:00:02]} cxd4 {[%clk
00:20:13]} {[%emt 00:00:03]} 4. Nxd4 {[%clk 00:20:12]} {[%emt 00:00:01]} g6
{[%clk 00:20:16]} {[%emt 00:00:03]} 5. Nc3 {[%clk 00:20:10]} {[%emt 00:00:07]}
Bg7 {[%clk 00:20:18]} {[%emt 00:00:02]} 6. Be3 {[%clk 00:20:12]} {[%emt
00:00:03]} Nf6 {[%clk 00:20:20]} {[%emt 00:00:03]} 7. f3 {[%clk 00:20:15]}
{[%emt 00:00:02]} d5 {[%clk 00:19:40]} {[%emt 00:00:45]} 8. Nxc6 {[%clk
00:19:13]} {[%emt 00:01:08]} bxc6 {[%clk 00:19:42]} {[%emt 00:00:03]} 9. e5
{[%clk 00:19:16]} {[%emt 00:00:02]} Nd7 {[%clk 00:19:31]} {[%emt 00:00:15]} 10.
f4 {[%clk 00:19:19]} {[%emt 00:00:02]} O-O {[%clk 00:19:10]} {[%emt 00:00:26]}
11. Be2 {[%clk 00:19:22]} {[%emt 00:00:01]} Nb6 {[%clk 00:18:28]} {[%emt
00:00:48]} 12. O-O {[%clk 00:19:06]} {[%emt 00:00:20]} Qc7 {[%clk 00:17:11]}
{[%emt 00:01:23]} 13. a4 {[%clk 00:17:55]} {[%emt 00:01:16]} a5 {[%clk
00:16:11]} {[%emt 00:01:05]} 14. Qd4 {[%clk 00:17:11]} {[%emt 00:00:48]} Nd7
{[%clk 00:15:13]} {[%emt 00:01:03]} 15. Qd2 {[%clk 00:16:28]} {[%emt 00:00:48]}
Bb7 {[%clk 00:14:06]} {[%emt 00:01:13]} 16. Bg4 {[%clk 00:16:19]} {[%emt
00:00:14]} Nb6 {[%clk 00:13:49]} {[%emt 00:00:22]} 17. Be2 {[%clk 00:15:40]}
{[%emt 00:00:44]} Rfd8 {[%clk 00:12:26]} {[%emt 00:01:28]} 18. Bf2 {[%clk
00:14:09]} {[%emt 00:01:35]} d4 {[%clk 00:11:00]} {[%emt 00:01:31]} 19. Ne4
{[%clk 00:14:03]} {[%emt 00:00:11]} c5 {[%clk 00:10:40]} {[%emt 00:00:25]} 20.
Bf3 {[%clk 00:13:56]} {[%emt 00:00:12]} Nc4 {[%clk 00:09:02]} {[%emt 00:01:43]}
21. Qc1 {[%clk 00:13:39]} {[%emt 00:00:22]} Rab8 {[%clk 00:08:55]} {[%emt
00:00:12]} 22. b3 {[%clk 00:13:31]} {[%emt 00:00:13]} Nb6 {[%clk 00:08:53]}
{[%emt 00:00:08]} 23. Bg3 {[%clk 00:13:11]} {[%emt 00:00:24]} Nd5 {[%clk
00:08:13]} {[%emt 00:00:45]} 24. Ng5 {[%clk 00:11:56]} {[%emt 00:01:21]} Ne3
{[%clk 00:05:53]} {[%emt 00:02:25]} 25. Qd2 {[%clk 00:09:35]} {[%emt 00:02:26]}
Nxf1 {[%clk 00:05:42]} {[%emt 00:00:16]} 26. Rxf1 {[%clk 00:09:38]} {[%emt
00:00:02]} Bxf3 {[%clk 00:04:51]} {[%emt 00:00:56]} 27. Rxf3 {[%clk 00:09:41]}
{[%emt 00:00:02]} c4 {[%clk 00:04:07]} {[%emt 00:00:49]} 28. bxc4 {[%clk
00:09:24]} {[%emt 00:00:22]} Qxc4 {[%clk 00:03:56]} {[%emt 00:00:15]} 29. Rf1
{[%clk 00:09:02]} {[%emt 00:00:27]} Rb2 {[%clk 00:03:43]} {[%emt 00:00:19]} 30.
Qxa5 {[%clk 00:08:16]} {[%emt 00:00:51]} Rdb8 {[%clk 00:03:47]} {[%emt
00:00:01]} 31. Qa7 {[%clk 00:07:45]} {[%emt 00:00:36]} Qxc2 {[%clk 00:03:38]}
{[%emt 00:00:13]} 32. Bf2 {[%clk 00:07:49]} {[%emt 00:00:01]} Rb1 {[%clk
00:01:52]} {[%emt 00:01:52]} 33. Qxd4 {[%clk 00:07:01]} {[%emt 00:00:53]} Rxf1+
{[%clk 00:00:38]} {[%emt 00:01:19]} 34. Kxf1 {[%clk 00:07:05]} {[%emt
00:00:01]} Qc1+ {[%clk 00:00:28]} {[%emt 00:00:15]} 35. Be1 {[%clk 00:06:58]}
{[%emt 00:00:12]} Rb1 {[%clk 00:00:19]} {[%emt 00:00:14]} 36. Qf2 {[%clk
00:07:00]} {[%emt 00:00:03]} Bf8 {[%clk 00:00:12]} {[%emt 00:00:12]} 37. Nf3
{[%clk 00:06:27]} {[%emt 00:00:36]} e6 {[%clk 00:00:10]} {[%emt 00:00:09]} 38.
Nd2 {[%clk 00:06:15]} {[%emt 00:00:17]} Ra1 {[%clk 00:00:12]} {[%emt 00:00:02]}
39. Nf3 {[%clk 00:04:45]} {[%emt 00:01:36]} Qc4+ {[%clk 00:00:11]} {[%emt
00:00:06]} 40. Qe2 {[%clk 00:04:44]} {[%emt 00:00:05]} Qxf4 {[%clk 00:00:13]}
{[%emt 00:00:03]} 41. Kf2 {[%clk 00:04:41]} {[%emt 00:00:08]} Bc5+ {[%clk
00:00:17]} {[%emt 00:00:02]} 42. Kf1 {[%clk 00:04:43]} {[%emt 00:00:04]} g5
{[%clk 00:00:20]} {[%emt 00:00:02]} 43. Qd2 {[%clk 00:04:29]} {[%emt 00:00:18]}
Qc4+ {[%clk 00:00:22]} {[%emt 00:00:03]} 44. Qe2 {[%clk 00:04:32]} {[%emt
00:00:03]} Qxa4 {[%clk 00:00:24]} {[%emt 00:00:02]} 45. Qd2 {[%clk 00:04:19]}
{[%emt 00:00:18]} Qb5+ {[%clk 00:00:14]} {[%emt 00:00:15]} 46. Qe2 {[%clk
00:04:22]} {[%emt 00:00:02]} Qc6 {[%clk 00:00:15]} {[%emt 00:00:04]} 47. Qd2
{[%clk 00:04:25]} {[%emt 00:00:03]} Qb6 {[%clk 00:00:15]} {[%emt 00:00:04]} 48.
Qxg5+ {[%clk 00:04:24]} {[%emt 00:00:06]} Kf8 {[%clk 00:00:19]} 49. Qd8+ {[%clk
00:04:22]} {[%emt 00:00:07]} Qxd8 {[%clk 00:00:23]} {[%emt 00:00:02]} 0-1



[ePGN "0.1;DGT LiveChess/2.2.6"]

[Event "MČR juniorů a juniorek v rapid šachu 2024"]
[Site "Hotel Fit Fun, Harrachov, Czech Republic"]
[Date "2024.09.22"]
[Round "8.21"]
[White "Martinkovic Adam"]
[Black "Budil Vaclav"]
[Result "1/2-1/2"]
[TimeControl "20+5"]
[WhiteFideId "23728019"]
[BlackFideId "23776226"]
[WhiteElo "1841"]
[BlackElo "1697"]

1. d4 {[%clk 00:20:07]} {[%emt 00:00:03]} c5 {[%clk 00:20:09]} {[%emt
00:00:02]} 2. Nf3 {[%clk 00:20:03]} {[%emt 00:00:08]} cxd4 {[%clk 00:20:12]}
{[%emt 00:00:02]} 3. Nxd4 {[%clk 00:20:07]} {[%emt 00:00:01]} d5 {[%clk
00:20:16]} {[%emt 00:00:02]} 4. c4 {[%clk 00:19:54]} {[%emt 00:00:18]} dxc4
{[%clk 00:19:51]} {[%emt 00:00:30]} 5. Qa4+ {[%clk 00:19:31]} {[%emt 00:00:27]}
Bd7 {[%clk 00:19:48]} {[%emt 00:00:08]} 6. Qxc4 {[%clk 00:19:33]} {[%emt
00:00:03]} g6 {[%clk 00:19:27]} {[%emt 00:00:26]} 7. Nc3 {[%clk 00:19:10]}
{[%emt 00:00:28]} Bg7 {[%clk 00:19:29]} {[%emt 00:00:02]} 8. Bf4 {[%clk
00:18:40]} {[%emt 00:00:35]} Na6 {[%clk 00:15:36]} {[%emt 00:03:58]} 9. Be3
{[%clk 00:16:43]} {[%emt 00:02:02]} Rc8 {[%clk 00:15:16]} {[%emt 00:00:25]} 10.
Qb3 {[%clk 00:15:49]} {[%emt 00:01:00]} Nc5 {[%clk 00:12:32]} {[%emt 00:02:49]}
11. Qb4 {[%clk 00:14:46]} {[%emt 00:01:08]} a5 {[%clk 00:11:36]} {[%emt
00:01:00]} 12. Qc4 {[%clk 00:14:22]} {[%emt 00:00:30]} Ne6 {[%clk 00:07:15]}
{[%emt 00:04:26]} 13. Qd3 {[%clk 00:14:19]} {[%emt 00:00:07]} Nf6 {[%clk
00:07:08]} {[%emt 00:00:12]} 14. Rd1 {[%clk 00:13:15]} {[%emt 00:01:10]} O-O
{[%clk 00:06:32]} {[%emt 00:00:41]} 15. Nxe6 {[%clk 00:12:30]} {[%emt
00:00:49]} Bxe6 {[%clk 00:06:34]} {[%emt 00:00:03]} 16. Qxd8 {[%clk 00:12:19]}
{[%emt 00:00:16]} Rfxd8 {[%clk 00:06:36]} {[%emt 00:00:03]} 17. Rxd8+ {[%clk
00:12:06]} {[%emt 00:00:18]} Rxd8 {[%clk 00:06:38]} {[%emt 00:00:03]} 18. Bc5
{[%clk 00:10:47]} {[%emt 00:01:25]} Nd5 {[%clk 00:05:16]} {[%emt 00:01:27]} 19.
Nd1 {[%clk 00:09:39]} {[%emt 00:01:13]} Nb4 {[%clk 00:04:20]} {[%emt 00:01:01]}
20. Bxb4 {[%clk 00:09:41]} {[%emt 00:00:03]} axb4 {[%clk 00:04:24]} {[%emt
00:00:01]} 21. e3 {[%clk 00:09:26]} {[%emt 00:00:19]} Bxa2 {[%clk 00:04:04]}
{[%emt 00:00:25]} 22. Be2 {[%clk 00:09:06]} {[%emt 00:00:26]} Bb3 {[%clk
00:03:58]} {[%emt 00:00:11]} 23. O-O {[%clk 00:08:46]} {[%emt 00:00:24]} Rd2
{[%clk 00:02:10]} {[%emt 00:01:53]} 24. Bf3 {[%clk 00:08:30]} {[%emt 00:00:22]}
Be5 {[%clk 00:00:34]} {[%emt 00:01:40]} 25. g3 {[%clk 00:08:04]} {[%emt
00:00:32]} Kg7 {[%clk 00:00:25]} {[%emt 00:00:13]} 26. Kg2 {[%clk 00:07:44]}
{[%emt 00:00:25]} h5 {[%clk 00:00:19]} {[%emt 00:00:12]} 27. h3 {[%clk
00:07:27]} {[%emt 00:00:21]} Kf6 {[%clk 00:00:18]} {[%emt 00:00:07]} 28. g4
{[%clk 00:07:25]} {[%emt 00:00:06]} hxg4 {[%clk 00:00:21]} {[%emt 00:00:02]} 29.
Bxg4 {[%clk 00:07:08]} {[%emt 00:00:22]} Bxd1 {[%clk 00:00:18]} {[%emt
00:00:09]} 30. Rxd1 {[%clk 00:06:59]} {[%emt 00:00:14]} Rxd1 {[%clk 00:00:17]}
{[%emt 00:00:06]} 31. Bxd1 {[%clk 00:07:02]} {[%emt 00:00:01]} Bxb2 {[%clk
00:00:20]} 32. Kf3 {[%clk 00:07:00]} {[%emt 00:00:08]} Ke5 {[%clk 00:00:23]}
{[%emt 00:00:03]} 33. Bb3 {[%clk 00:07:02]} {[%emt 00:00:03]} f6 {[%clk
00:00:24]} {[%emt 00:00:04]} 34. h4 {[%clk 00:07:02]} {[%emt 00:00:05]} Kd6
{[%clk 00:00:23]} {[%emt 00:00:06]} 35. Ke4 {[%clk 00:06:58]} {[%emt 00:00:09]}
Bc3 {[%clk 00:00:24]} {[%emt 00:00:04]} 36. Bf7 {[%clk 00:06:58]} {[%emt
00:00:04]} Be1 {[%clk 00:00:10]} {[%emt 00:00:19]} 37. Kf3 {[%clk 00:06:56]}
{[%emt 00:00:07]} Ke5 {[%clk 00:00:08]} {[%emt 00:00:08]} 38. Ke2 {[%clk
00:06:50]} {[%emt 00:00:12]} Bc3 {[%clk 00:00:11]} 39. Bxg6 {[%clk 00:06:41]}
{[%emt 00:00:14]} f5 {[%clk 00:00:15]} {[%emt 00:00:01]} 40. Kd3 {[%clk
00:06:36]} {[%emt 00:00:10]} Kf6 {[%clk 00:00:18]} {[%emt 00:00:02]} 41. Be8
{[%clk 00:06:38]} {[%emt 00:00:03]} Be1 {[%clk 00:00:11]} {[%emt 00:00:11]} 42.
Ke2 {[%clk 00:06:35]} {[%emt 00:00:08]} Bc3 {[%clk 00:00:15]} {[%emt 00:00:02]}
43. Kd3 {[%clk 00:06:38]} {[%emt 00:00:02]} Kg7 {[%clk 00:00:14]} {[%emt
00:00:05]} 44. f3 {[%clk 00:06:35]} {[%emt 00:00:08]} Bf6 {[%clk 00:00:15]}
{[%emt 00:00:05]} 45. h5 {[%clk 00:06:32]} {[%emt 00:00:08]} Bc3 {[%clk
00:00:13]} {[%emt 00:00:07]} 46. Kc4 {[%clk 00:06:26]} {[%emt 00:00:11]} Bd2
{[%clk 00:00:13]} {[%emt 00:00:06]} 47. e4 {[%clk 00:06:30]} fxe4 {[%clk
00:00:16]} {[%emt 00:00:01]} 48. fxe4 {[%clk 00:06:34]} {[%emt 00:00:02]} Kf6
{[%clk 00:00:19]} {[%emt 00:00:02]} 49. Bg6 {[%clk 00:06:35]} {[%emt 00:00:04]}
Ke5 {[%clk 00:00:18]} {[%emt 00:00:06]} 50. Kb3 {[%clk 00:06:39]} {[%emt
00:00:01]} b6 {[%clk 00:00:21]} {[%emt 00:00:02]} 51. Bf5 {[%clk 00:06:43]}
{[%emt 00:00:01]} Kd4 {[%clk 00:00:15]} {[%emt 00:00:11]} 52. Bg6 {[%emt
00:00:14]} 1/2-1/2



[ePGN "0.1;DGT LiveChess/2.2.6"]